bitfinex/quotes_ETHUSD_20250507
["timestamp","ask_amount","ask_price","bid_price","bid_amount"]
[1746643725022,5.55432126,1800.4,1800.3,0.18182892]
[1746643725751,5.55383951,1800.6,1800.3,0.94042892]
[1746643725907,5.55432126,1800.4,1800.3,0.18182892]
[1746643726846,5.55395023,1800.6,1800.3,0.18182892]
[1746643727073,5.55432126,1800.4,1800.3,0.18182892]
[1746643727283,6.468,1800.8,1800.3,0.18182892]
[1746643727593,5.55417095,1800.5,1800.3,0.18182892]
[1746643727770,5.55432126,1800.4,1800.3,0.18182892]
[1746643728839,9.05432126,1800.4,1800.3,0.18182892]
[1746643731173,9.60432126,1800.4,1800.3,0.18182892]
[1746643732876,14.79384696,1800.4,1800.3,0.18182892]
[1746643733197,15.21007338,1800.4,1800.3,0.18182892]
[1746643733901,9.47054768,1800.4,1800.3,0.18182892]
[1746643734285,15.21007338,1800.4,1800.3,0.18182892]
[1746643736258,14.66007338,1800.4,1800.3,0.18182892]
[1746643736499,6.55432126,1800.4,1800.3,0.18182892]
[1746643736796,9.55432126,1800.4,1800.3,0.18182892]
[1746643737162,6.05432126,1800.4,1800.3,0.18182892]
[1746643737784,9.97254957,1800.4,1800.3,0.18182892]
[1746643738103,10.52254957,1800.4,1800.3,0.18182892]
[1746643738962,9.97254957,1800.4,1800.3,0.18182892]
[1746643739582,10.52254957,1800.4,1800.3,0.18182892]
[1746643740096,9.97254957,1800.4,1800.3,0.18182892]
[1746643740466,16.44154957,1800.4,1800.3,0.18182892]
[1746643741075,15.52332126,1800.4,1800.3,0.18182892]
[1746643741409,12.52332126,1800.4,1800.3,0.18182892]
[1746643741881,6.05432126,1800.4,1800.3,0.96912892]
[1746643743865,6.05432126,1800.4,1800.3,0.18182892]
[1746643746886,9.55432126,1800.4,1800.3,0.18182892]
[1746643747411,9.05432126,1800.4,1800.3,0.18182892]
[1746643749536,6.05432126,1800.4,1800.3,0.18182892]
[1746643751883,10.10432126,1800.4,1800.3,0.18182892]
[1746643752285,9.55432126,1800.4,1800.3,0.18182892]
[1746643752526,9.05432126,1800.4,1800.3,0.18182892]
[1746643757137,9.60432126,1800.4,1800.3,0.18182892]
[1746643757430,9.05432126,1800.4,1800.3,0.18182892]
[1746643758638,9.47001225,1800.4,1800.3,0.18182892]
[1746643758941,10.02001225,1800.4,1800.3,0.18182892]
[1746643759800,6.05432126,1800.4,1800.3,0.18182892]
[1746643760337,5.55432126,1800.4,1800.3,0.18182892]
[1746643765623,9.60432126,1800.4,1800.3,0.18182892]
[1746643766137,9.05432126,1800.4,1800.3,0.18182892]
[1746643766324,10.01853379,1800.4,1800.3,0.18182892]
[1746643768037,5.55493834,1800.2,1800.1,0.4390257]
[1746643768241,14.29446404,1800.2,1800.1,0.4390257]
[1746643768411,14.29446404,1800.2,1800.1,0.22419864]
[1746643768412,14.79446404,1800.2,1800.1,0.22419864]
[1746643770305,14.79446404,1800.2,1799.5,0.005]
[1746643770306,5.55679039,1799.6,1799.5,0.005]
[1746643770503,15.02379039,1799.6,1799.5,0.005]
[1746643770944,15.57379039,1799.6,1799.5,0.005]
[1746643772224,12.02379039,1799.6,1799.5,0.005]
[1746643772750,12.02379039,1799.6,1799.5,0.7563]
[1746643772920,25.57727654,1799.8,1799.5,0.7563]
[1746643773118,32.04542355,1799.8,1799.5,0.6363689]
[1746643773477,5.55648163,1799.7,1799.6,0.8175]
[1746643776039,26.489,1799.8,1799.5,0.005]
[1746643776230,0.5,1799.7,1799.5,0.005]
[1746643778254,3.5,1799.7,1799.5,0.005]
[1746643778434,8.6895257,1799.7,1799.5,0.005]
[1746643779157,0.55,1799.6,1799.5,0.005]
[1746643780276,1.05,1799.6,1799.5,0.005]
[1746643782056,9.884,1799.6,1799.5,0.005]
[1746643782273,4.05,1799.6,1799.5,0.005]
[1746643782980,3.5,1799.6,1799.5,0.005]
[1746643783479,6.967,1799.6,1799.5,0.005]
[1746643783637,9.467,1799.6,1799.5,0.005]
[1746643783842,6.467,1799.6,1799.5,0.005]
[1746643784140,3.67862252,1799.9,1799.6,0.7515]
[1746643785256,2.98888079,1799.9,1799.8,0.7977]
[1746643785465,1.87537322,1799.9,1799.8,0.7977]
[1746643785787,1.04207322,1799.9,1799.8,0.7977]
[1746643786078,0.20877322,1799.9,1799.8,0.7977]
[1746643786287,4.79417154,1800.4,1799.9,0.7725]
[1746643786591,6.467,1800.5,1799.9,0.7725]
[1746643787383,6.467,1800.5,1800.0,5.1895257]
[1746643787687,6.466,1800.9,1800.1,0.8287]
[1746643789352,6.466,1800.9,1800.2,0.7565]
[1746643790104,6.466,1800.9,1800.3,0.05554449]
[1746643790290,6.466,1800.9,1800.4,0.7565]
[1746643790807,5.1895257,1801.7,1800.4,0.7565]
[1746643790808,6.465,1801.0,1800.4,0.7565]
[1746643793503,7.2423,1801.0,1800.4,0.7565]
[1746643793890,6.465,1801.0,1800.4,0.7565]
[1746643799730,6.465,1801.0,1800.6,5.1895257]
[1746643799913,6.465,1801.0,1800.7,0.88242624]
[1746643800288,20.7907,1801.8,1800.7,0.88242624]
[1746643800535,6.463,1801.7,1800.9,5.1895257]
[1746643800724,6.463,1801.7,1801.0,0.7845]
[1746643801032,6.463,1801.7,1801.0,1.38190257]
[1746643801212,7.2531,1801.7,1801.0,0.7845]
[1746643801396,12.4426257,1801.7,1801.0,0.7845]
[1746643801591,5.1895257,1801.4,1800.4,0.7698]
[1746643801824,3.0,1801.0,1800.4,0.7698]
[1746643802024,7.2521,1800.9,1800.4,0.7698]
[1746643802244,7.2521,1800.9,1799.6,0.0555493]
[1746643802428,3.0,1800.7,1800.1,0.7698]
[1746643803529,6.462,1800.6,1800.1,0.7698]
[1746643804915,0.7595,1800.5,1800.1,0.7698]
[1746643805133,0.7595,1800.5,1800.0,3.71847393]
[1746643805648,3.7595,1800.5,1800.0,3.71847393]
[1746643806455,3.7595,1800.5,1800.0,4.17001132]
[1746643806637,6.462,1800.6,1800.0,4.17001132]
[1746643807156,6.462,1800.6,1800.0,0.45153739]
[1746643807311,6.462,1800.6,1799.9,0.7969]
[1746643807512,6.462,1800.6,1800.0,0.05555272]
[1746643807748,6.462,1800.6,1799.7,0.7795]
[1746643808018,6.462,1800.6,1799.9,3.7795]
[1746643808251,6.462,1800.6,1800.0,0.85053845]
[1746643808553,6.462,1800.6,1800.0,0.795]
[1746643809550,6.46,1801.0,1800.4,0.8161]
[1746643809753,0.8136,1801.5,1800.5,6.061154]
[1746643809963,6.46,1801.2,1800.6,0.8161]
[1746643810311,7.2561,1801.2,1800.6,0.8161]
[1746643810745,3.0,1801.1,1800.6,0.8161]
[1746643810954,3.0,1801.1,1800.0,0.8299]
[1746643811432,0.7792,1801.0,1800.0,0.8299]
[1746643812051,5.55277916,1800.9,1800.0,0.8299]
[1746643812267,5.55515242,1800.2,1800.0,0.8299]
[1746643812862,5.55524693,1800.1,1800.0,0.8299]
[1746643813370,5.55515242,1800.2,1800.0,0.8299]
[1746643813561,5.55479523,1800.3,1800.0,0.8299]
[1746643813878,11.10969347,1800.3,1800.0,0.8299]
[1746643814072,5.55454479,1800.4,1800.1,0.8332]
[1746643814274,6.459,1800.5,1800.3,0.8332]
[1746643814436,6.459,1800.9,1800.4,0.05553864]
[1746643814641,5.55336448,1800.8,1800.4,0.8332]
[1746643814835,5.55401277,1800.5,1800.4,0.8332]
[1746643815369,5.55308751,1800.8,1799.7,5.55634004]
[1746643815370,5.55501726,1800.2,1799.7,5.55634004]
[1746643815571,5.55586421,1799.9,1799.8,0.555634]
[1746643815774,5.55556365,1800.0,1799.6,5.55675815]
[1746643815974,5.55582156,1800.0,1799.7,0.7701]
[1746643816173,6.459,1800.4,1799.7,0.7701]
[1746643816352,5.55537503,1800.1,1799.7,0.7701]
[1746643816552,5.55555862,1800.0,1799.7,0.7886]
[1746643816750,6.459,1800.4,1800.0,0.7886]
[1746643816963,5.5542249,1800.5,1800.2,0.7886]
[1746643817169,5.55320122,1800.8,1800.5,0.7552]
[1746643817377,5.55370432,1800.6,1800.5,1.386139]
[1746643817582,5.55524693,1800.1,1800.0,0.7552]
[1746643818301,0.7625,1800.7,1800.0,0.7552]
[1746643818457,0.7625,1800.9,1800.0,6.31059993]
[1746643818664,5.55401277,1800.5,1800.1,0.8231]
[1746643818964,5.55443309,1800.4,1800.1,0.8231]
[1746643819394,6.459,1800.6,1800.3,5.55439942]
[1746643819559,5.55353213,1800.7,1800.5,0.803]
[1746643819757,5.55370432,1800.6,1800.5,0.803]
[1746643821786,5.5532592,1800.8,1800.5,0.803]
[1746643822117,5.55308751,1800.8,1800.7,0.7847]
[1746643822610,5.55404228,1800.5,1800.3,0.8273]
[1746643822764,12.01147871,1801.0,1800.3,0.8273]
[1746643822765,11.10786976,1800.6,1800.3,0.8273]
[1746643823098,5.55277916,1800.9,1800.5,5.55372262]
[1746643823099,5.55298399,1800.9,1800.5,5.55372262]
[1746643823260,5.55298399,1800.9,1800.6,1.33437226]
[1746643823261,5.55318211,1800.8,1800.6,1.33437226]
[1746643823460,5.55318211,1800.8,1800.6,0.779]
[1746643823689,5.55297144,1800.9,1800.6,0.779]
[1746643823890,5.55313272,1800.8,1800.6,0.779]
[1746643824105,5.5533959,1800.7,1800.6,0.779]
[1746643824303,5.55313272,1800.8,1800.6,0.779]
[1746643824963,5.55295036,1800.9,1800.6,0.779]
[1746643825386,11.10599407,1800.9,1800.6,0.779]
[1746643825591,5.55261785,1801.0,1800.6,0.779]
[1746643825903,5.55261785,1801.0,1800.6,6.3325464]
[1746643826078,5.55230159,1801.1,1800.7,6.1865379]
[1746643826272,5.55230159,1801.1,1800.8,0.8058]
[1746643826686,5.5519867,1801.2,1800.8,0.86132298]
[1746643826878,6.459,1801.3,1801.0,5.55234563]
[1746643827077,6.459,1801.3,1801.2,0.7869]
[1746643827276,12.0105461,1801.3,1801.2,0.7869]
[1746643827692,12.01067891,1801.3,1800.9,6.33953399]
[1746643828000,6.459,1801.3,1801.0,6.18625569]
[1746643828202,5.55148739,1801.4,1801.2,0.7869]
[1746643828377,5.5515461,1801.3,1801.2,0.7869]
[1746643828712,20.016,1801.6,1800.9,5.55256805]
[1746643829005,5.55145691,1801.4,1801.0,0.84241621]
[1746643829307,5.55154925,1801.3,1801.0,0.84241621]
[1746643829479,25.56676358,1801.6,1801.2,0.7869]
[1746643829684,20.016,1801.6,1801.2,6.97263568]
[1746643829881,11.10047175,1801.8,1801.3,0.7869]
[1746643830081,5.55064031,1801.6,1801.3,0.7869]
[1746643830281,5.55000555,1801.8,1801.3,0.7869]
[1746643830485,5.55118553,1801.5,1801.3,0.7869]
[1746643830984,5.55113658,1801.5,1801.3,0.7869]
[1746643831604,5.79250845,1801.4,1801.3,0.7869]
[1746643832076,5.55177942,1801.3,1801.0,0.7869]
[1746643832417,0.24420599,1801.2,1801.1,5.60765793]
[1746643832617,5.55110668,1801.5,1801.1,5.60748026]
[1746643832917,0.24417495,1801.4,1801.2,6.31493679]
[1746643833469,17.55874134,1801.6,1801.2,6.31493679]
[1746643833670,0.24416244,1801.3,1801.2,6.31493679]
[1746643833919,6.457,1801.6,1801.2,2.00541698]
[1746643834066,0.24414002,1801.3,1801.2,0.7632]
[1746643834266,5.55094606,1801.5,1801.2,0.7632]
[1746643834466,0.24414749,1801.3,1801.2,0.7632]
[1746643834704,5.5513324,1801.4,1801.2,0.7632]
[1746643834901,0.24414002,1801.3,1800.8,0.8133]
[1746643835107,6.38167084,1801.0,1800.6,4.53177393]
[1746643835304,6.38167084,1801.0,1800.6,3.71847393]
[1746643835305,9.3825959,1800.7,1800.6,3.71847393]
[1746643835509,9.9325959,1800.7,1800.6,3.71847393]
[1746643835712,10.17648674,1800.7,1800.6,3.71847393]
[1746643835885,10.17648674,1800.7,1800.6,2.64632603]
[1746643836410,10.58451955,1800.7,1800.6,2.64632603]
[1746643837111,10.17648674,1800.7,1800.6,2.64632603]
[1746643838014,9.62648674,1800.7,1800.6,2.64632603]
[1746643838401,10.17648674,1800.7,1800.6,2.64632603]
[1746643838906,5.55493834,1800.2,1799.9,0.7752]
[1746643839212,5.79470972,1800.1,1799.9,1.40832398]
[1746643839509,0.23934532,1800.1,1799.9,0.7752]
[1746643839712,0.23934532,1800.1,1800.0,5.61110398]
[1746643839913,6.558,1800.3,1799.9,0.7752]
[1746643840514,0.23941777,1800.2,1800.0,5.55542999]
[1746643840713,0.23941777,1800.2,1800.1,5.55524693]
[1746643840917,0.23941777,1800.2,1800.1,7.50116917]
[1746643841118,5.55413711,1800.5,1800.1,7.50116917]
[1746643841277,0.23942151,1800.2,1800.1,1.94592224]
[1746643841481,5.55473691,1800.3,1800.1,0.8293]
[1746643841787,0.23942151,1800.2,1800.1,0.8293]
[1746643841993,5.55402249,1800.5,1800.1,0.8293]
[1746643842219,0.23945779,1800.4,1800.1,6.38438586]
[1746643842422,0.23945779,1800.4,1800.1,0.7818]
[1746643842609,5.55373992,1800.6,1800.1,6.71508993]
[1746643842929,5.55457253,1800.4,1800.1,1.15998]
[1746643843110,5.5546358,1800.3,1800.1,0.7818]
[1746643843418,5.79404737,1800.3,1800.1,0.7818]
[1746643843781,5.55493834,1800.2,1800.1,0.7818]
[1746643843989,0.99532414,1800.2,1799.6,0.7818]
[1746643844211,5.55648163,1799.7,1799.5,0.005]
[1746643844391,5.79581821,1799.6,1799.5,0.005]
[1746643847913,0.23902782,1799.6,1799.5,0.005]
[1746643848110,0.23902782,1799.6,1799.5,6.32289919]
[1746643848342,5.55581716,1800.0,1799.5,6.58761562]
[1746643848636,0.23916092,1799.9,1799.5,12.14451277]
[1746643848800,0.23916092,1799.9,1799.6,3.0]
[1746643849002,0.23916092,1799.9,1799.8,6.3527729]
[1746643849200,12.11407314,1800.2,1799.8,6.3527729]
[1746643849201,5.55532549,1800.1,1799.8,0.7966]
[1746643849401,0.22843882,1800.0,1799.9,0.05555419]
[1746643849635,5.55506784,1800.2,1799.9,0.64081085]
[1746643849837,0.22852258,1800.1,1799.9,6.19667444]
[1746643850035,5.55450432,1800.4,1800.0,5.55550882]
[1746643850200,5.78336559,1800.3,1799.9,6.19667444]
[1746643850401,0.22856263,1800.3,1799.9,0.64081085]
[1746643850641,5.55570229,1800.0,1799.8,0.7966]
[1746643850796,0.22848253,1799.9,1799.8,0.7966]
[1746643851239,5.55555725,1800.0,1799.8,0.7966]
[1746643851447,0.22848253,1799.9,1799.8,0.7966]
[1746643852005,5.78434674,1799.9,1799.8,0.7966]
[1746643852237,0.22848253,1799.9,1799.8,0.7966]
[1746643852442,5.78434674,1799.9,1799.8,0.7966]
[1746643852753,5.78434674,1799.9,1799.6,3.8066]
[1746643852901,0.22848253,1799.9,1799.6,0.8066]
[1746643853104,5.78459173,1799.9,1799.5,0.005]
[1746643853339,5.55645478,1799.8,1799.5,0.005]
[1746643853637,5.55659085,1799.7,1799.5,0.005]
[1746643853802,0.22905083,1799.6,1799.5,0.005]
[1746643853998,5.55632383,1799.8,1799.5,0.005]
[1746643854314,5.78559936,1799.7,1799.5,0.005]
[1746643854834,0.22899413,1799.7,1799.5,5.91799749]
[1746643855017,5.5558839,1799.9,1799.5,5.86236977]
[1746643855218,0.22794802,1799.8,1799.5,5.86236977]
[1746643855418,5.55567527,1800.0,1799.7,0.8031]
[1746643855606,0.22851053,1799.9,1799.7,6.35956328]
[1746643855809,12.11536244,1800.1,1799.8,0.63595633]
[1746643856009,12.11536244,1800.1,1799.7,0.8031]
[1746643856010,5.55596426,1799.9,1799.7,0.8031]
[1746643856212,0.22848675,1799.8,1799.7,0.8031]
[1746643856545,6.56,1800.1,1799.7,6.41504291]
[1746643856546,12.11545601,1800.1,1799.7,6.41504291]
[1746643856846,5.55579839,1800.0,1799.7,0.8031]
[1746643857020,0.22850678,1799.9,1799.7,0.8031]
[1746643857339,5.78437429,1799.9,1799.7,0.8031]
[1746643857542,0.22850678,1799.9,1799.7,0.8031]
[1746643857842,0.22850678,1799.9,1799.8,5.5561729]
[1746643858041,5.55525027,1800.1,1799.7,6.73976164]
[1746643858207,0.22907672,1800.0,1799.8,5.55615288]
[1746643858408,5.55512543,1800.2,1799.8,5.55615288]
[1746643858603,0.22958113,1800.1,1799.8,5.55604418]
[1746643858809,5.55512543,1800.2,1799.9,0.55560442]
[1746643859008,12.11506826,1800.5,1799.7,0.8031]
[1746643859009,5.55571369,1800.0,1799.7,0.8031]
[1746643859237,5.78560293,1799.9,1799.7,0.8031]
[1746643859444,0.22952607,1799.9,1799.8,5.5561729]
[1746643859614,5.5553899,1800.1,1799.7,6.35937389]
[1746643859932,0.22956485,1800.0,1799.7,6.35937389]
[1746643860134,0.22956485,1800.0,1799.7,7.85097397]
[1746643860333,0.22956485,1800.0,1799.9,9.32596421]
[1746643860841,0.21078433,1800.0,1799.9,3.7701]
[1746643861042,5.55477835,1800.3,1799.9,9.38151395]
[1746643861342,5.76588174,1800.2,1799.9,0.7701]
[1746643861546,0.2108019,1800.2,1799.7,0.8285]
[1746643861751,5.55600289,1799.9,1799.7,0.8285]
[1746643862049,0.21136636,1799.8,1799.7,0.8285]
[1746643862217,5.55589273,1799.9,1799.7,0.8285]
[1746643862441,0.21137761,1799.8,1799.7,0.8285]
[1746643862775,5.55556618,1800.0,1799.7,0.8285]
[1746643862960,0.21116776,1799.8,1799.7,0.8285]
[1746643863140,5.55589252,1799.9,1799.7,0.8285]
[1746643863467,0.21117151,1799.8,1799.7,0.8285]
[1746643863667,5.55589252,1799.9,1799.7,0.8285]
[1746643863972,0.21114151,1799.8,1799.7,0.8285]
[1746643864270,5.55570452,1800.0,1799.7,0.8285]
[1746643864472,5.76626518,1799.9,1799.7,0.8285]
[1746643864630,0.21037639,1799.9,1799.7,0.8285]
[1746643864830,0.8327,1800.5,1800.0,5.55528812]
[1746643865067,0.19248452,1800.4,1800.2,5.55465274]
[1746643865243,0.19248452,1800.4,1800.1,0.84704553]
[1746643865244,5.55391031,1800.6,1800.1,6.34660927]
[1746643865440,0.17484048,1800.5,1800.1,0.84704344]
[1746643865652,0.17484048,1800.5,1800.1,0.84704336]
[1746643865853,0.17484048,1800.5,1800.4,5.55432126]
[1746643866082,6.56,1800.8,1800.4,6.34781853]
[1746643866265,0.17487421,1800.5,1800.4,6.34781853]
[1746643866468,6.56,1800.8,1800.5,5.55387527]
[1746643866648,0.17491423,1800.7,1800.6,5.60893631]
[1746643866858,6.56,1801.2,1800.8,5.55282092]
[1746643867058,5.72727053,1801.1,1800.6,9.3469979]
[1746643867248,5.72727053,1801.1,1800.7,5.55322082]
[1746643867448,5.72727053,1801.1,1800.8,5.55307828]
[1746643867667,0.17508974,1801.1,1800.8,5.60860496]
[1746643867853,12.11188754,1801.2,1800.8,5.60860496]
[1746643868037,0.17508974,1801.1,1800.8,5.60860496]
[1746643868239,12.11208348,1801.2,1800.8,5.60860496]
[1746643868441,0.17508974,1801.1,1800.9,5.55263929]
[1746643868634,12.93178667,1801.6,1801.1,5.5521437]
[1746643868938,5.55153613,1801.4,1801.0,6.32421916]
[1746643869136,5.72632664,1801.5,1801.1,5.60755333]
[1746643869380,0.17524951,1801.3,1801.2,5.55185431]
[1746643869548,5.55107458,1801.5,1801.1,5.55202669]
[1746643869889,11.10224963,1801.5,1801.1,6.73973218]
[1746643870199,0.17522094,1801.4,1801.1,6.73962548]
[1746643870691,5.55168977,1801.3,1801.0,0.7719]
[1746643871114,0.18284809,1801.2,1801.0,0.7719]
[1746643871304,5.55289233,1800.9,1800.5,8.55385458]
[1746643871595,0.18195459,1800.8,1800.4,0.7697]
[1746643871751,0.18195459,1800.8,1800.5,5.55380471]
[1746643871953,0.18194956,1800.7,1800.5,5.55380471]
[1746643872181,5.55278204,1800.9,1800.5,6.7415715]
[1746643872420,11.10583249,1800.9,1800.5,6.79710347]
[1746643872597,5.73505968,1800.8,1800.5,5.55380471]
[1746643872901,5.73505968,1800.8,1800.4,6.32388034]
[1746643873068,0.18196208,1800.8,1800.2,0.7817]
[1746643873594,5.5540259,1800.5,1800.2,0.7817]
[1746643873806,0.17981206,1800.4,1800.2,0.7817]
[1746643874106,0.17981206,1800.4,1800.1,5.5550432]
[1746643874107,5.73431782,1800.4,1800.1,3.0]
[1746643874271,5.73415804,1800.4,1800.1,3.98869948]
[1746643874473,0.17981206,1800.4,1800.1,9.54392927]
[1746643874700,5.5547409,1800.3,1800.0,0.7762]
[1746643874882,0.17981206,1800.4,1800.1,5.61055081]
[1746643875087,0.18086907,1800.2,1800.1,10.80016072]
[1746643875282,5.55404036,1800.5,1800.1,5.5550889]
[1746643875483,5.55404036,1800.5,1800.0,0.7762]
[1746643875677,5.55350738,1800.7,1800.3,5.55446988]
[1746643875904,0.18112737,1800.6,1800.4,5.55431967]
[1746643876106,0.18112737,1800.6,1800.4,5.60985588]
[1746643876307,0.7844,1800.9,1800.5,5.5539131]
[1746643876308,5.55293997,1800.9,1800.5,5.5539131]
[1746643876623,5.55313362,1800.8,1800.4,11.49364135]
[1746643876792,5.55342477,1800.7,1800.4,0.75]
[1746643877119,5.55321801,1800.8,1800.4,10.34583289]
[1746643877443,5.55321801,1800.8,1800.4,10.34566934]
[1746643877610,11.10532853,1801.0,1800.4,1.84707493]
[1746643879773,5.54952521,1802.0,1801.6,5.5505951]
[1746643879972,32.04625725,1802.1,1801.7,5.55013657]
[1746643880307,26.497,1802.1,1801.8,5.54999093]
[1746643880494,26.497,1802.1,1801.7,6.11086414]
[1746643880495,6.479,1802.1,1801.7,0.56056351]
[1746643880887,5.54953059,1802.0,1801.7,0.56056351]
[1746643881224,6.479,1802.1,1801.8,5.54998617]
[1746643881630,6.479,1802.1,1801.7,6.11063724]
[1746643881923,5.54859977,1802.3,1801.9,5.54958449]
[1746643882123,5.54859977,1802.3,1802.0,0.055487]
[1746643882432,5.54831515,1802.4,1802.0,5.60470285]
[1746643882607,6.478,1802.5,1802.2,5.54856221]
[1746643882785,5.54735994,1802.7,1802.3,0.55485622]
[1746643882984,0.7876,1802.8,1802.0,3.0]
[1746643883317,5.54831139,1802.4,1802.0,3.0]
[1746643883694,5.54797962,1802.5,1802.0,8.60476482]
[1746643883894,5.54819574,1802.4,1802.0,8.54928205]
[1746643884122,5.54804543,1802.5,1802.1,5.54896251]
[1746643884320,5.54818897,1802.4,1802.1,0.85489625]
[1746643884508,5.5472347,1802.7,1802.1,0.85489625]
[1746643884707,5.54803808,1802.5,1802.0,8.54923267]
[1746643884995,5.54857527,1802.3,1802.0,3.0]
[1746643885330,5.54919929,1802.1,1801.9,0.7931]
[1746643885532,5.54882371,1802.2,1801.9,0.7931]
[1746643885741,0.7918,1802.3,1801.6,5.9881257]
[1746643885897,5.55106018,1801.5,1801.3,0.7986]
[1746643886097,5.5513415,1801.4,1801.0,11.54055693]
[1746643886314,7.2678,1801.8,1801.0,7.14218139]
[1746643886636,5.552028,1801.2,1801.0,1.95265569]
[1746643886939,0.11194705,1801.1,1801.0,0.7986]
[1746643887323,5.55261411,1801.0,1800.7,0.7806]
[1746643887639,3.0,1801.7,1800.8,0.05552346]
[1746643887834,3.0,1801.7,1800.7,11.52336293]
[1746643887835,5.55093485,1801.5,1800.7,0.7806]
[1746643888020,0.93983752,1801.4,1800.7,0.7806]
[1746643888222,5.55265748,1801.0,1800.7,3.7806]
[1746643888424,0.11029791,1800.9,1800.8,5.60845691]
[1746643888739,0.8294,1801.4,1800.8,3.0]
[1746643888740,5.55123792,1801.4,1800.8,3.0]
[1746643888945,0.7958,1801.7,1800.8,3.0]
[1746643888946,0.10955602,1800.9,1800.8,8.55307171]
[1746643889249,0.10956351,1800.9,1800.8,3.0]
[1746643889457,5.55308751,1800.8,1800.5,8.63943584]
[1746643889610,5.55354026,1800.7,1800.5,10.57774892]
[1746643889815,5.55370432,1800.6,1800.5,8.63943584]
[1746643890126,0.11132125,1800.6,1800.5,11.63943584]
[1746643890325,5.66502557,1800.6,1800.5,11.63943584]
[1746643890523,5.5522268,1801.1,1800.5,11.63943584]
[1746643890726,0.11130412,1800.6,1800.5,3.0]
[1746643890935,5.5535145,1800.7,1800.5,3.05553331]
[1746643891247,0.1113191,1800.6,1800.5,3.05553331]
[1746643891443,5.55292682,1800.9,1800.5,9.55068582]
[1746643891643,5.66460082,1800.8,1800.5,3.99671817]
[1746643891832,5.55340504,1800.7,1800.5,3.94118486]
[1746643892037,0.11131535,1800.6,1800.5,3.94118486]
[1746643892233,5.55291885,1800.9,1800.5,3.9967186]
[1746643892458,0.11133665,1800.8,1800.5,15.04890138]
[1746643892655,0.8176,1801.2,1800.6,3.39967186]
[1746643892812,0.11140416,1801.1,1800.8,5.55298269]
[1746643893020,5.55187807,1801.2,1800.9,5.60817157]
[1746643893242,5.55187807,1801.2,1800.9,0.05551967]
[1746643893243,0.10979579,1801.1,1800.9,0.05551967]
[1746643893568,5.55172687,1801.3,1800.9,0.05551967]
[1746643893858,5.55108262,1801.5,1801.0,5.55218825]
[1746643894020,5.55108262,1801.5,1801.1,5.55209546]
[1746643894220,5.55108262,1801.5,1801.0,5.55218825]
[1746643894221,5.55075767,1801.6,1801.2,5.60732173]
[1746643894415,5.55105398,1801.5,1801.2,3.0]
[1746643894616,6.477,1801.7,1800.9,1.62184227]
[1746643894863,5.55175202,1801.3,1800.9,0.761]
[1746643895160,5.55136705,1801.4,1801.0,5.6078564]
[1746643895564,5.55155074,1801.3,1801.0,3.05551656]
[1746643895764,5.55065552,1801.6,1800.9,1.39238733]
[1746643895765,5.55228371,1801.1,1800.9,0.761]
[1746643895910,5.55247084,1801.0,1800.7,3.0]
[1746643896110,5.55266,1801.0,1800.6,6.40199756]
[1746643896331,5.55338784,1800.8,1800.4,5.55428456]
[1746643896623,5.5525682,1801.0,1800.6,5.55367969]
[1746643897160,12.0292323,1801.1,1800.7,5.55319696]
[1746643897465,12.02924319,1801.1,1800.6,10.74320539]
[1746643897664,5.5527209,1801.0,1800.6,10.74320539]
[1746643897849,5.5527209,1801.0,1800.6,12.67291419]
[1746643898158,5.55263221,1801.0,1800.5,8.55388113]
[1746643898362,5.55263221,1801.0,1800.6,5.60912493]
[1746643898536,5.55279465,1800.9,1800.6,0.05552919]
[1746643898742,5.55310608,1800.8,1800.6,0.05552919]
[1746643898942,5.55261926,1801.0,1800.6,5.60919799]
[1746643899288,6.477,1801.1,1800.4,5.1895257]
[1746643899433,5.55432126,1800.4,1800.0,0.8136]
[1746643899633,5.55453085,1800.4,1800.0,0.8136]
[1746643900002,3.8046,1801.0,1800.0,7.00590043]
[1746643900178,5.5533959,1800.7,1800.0,7.00590043]
[1746643900327,5.55336253,1800.8,1800.0,7.00590043]
[1746643900328,5.55468478,1800.3,1800.0,0.8136]
[1746643900666,5.5545166,1800.4,1800.0,6.36897109]
[1746643901261,5.554144,1800.5,1800.1,5.55509498]
[1746643901481,6.493,1800.6,1800.2,3.05553997]
[1746643901778,12.85037252,1801.0,1800.2,3.0]
[1746643901981,5.55386077,1800.6,1800.2,8.55478953]
[1746643902140,7.2976,1801.0,1800.3,5.55441975]
[1746643902347,12.85007645,1801.0,1800.3,5.55445696]
[1746643902571,5.55298752,1800.9,1800.5,5.55396182]
[1746643902774,12.04566693,1801.0,1800.6,5.60923236]
[1746643902985,5.55196896,1801.2,1800.6,0.05552753]
[1746643903296,5.5522328,1801.1,1800.8,5.55295758]
[1746643903661,5.55201593,1801.2,1800.8,5.55295758]
[1746643903861,5.55216263,1801.1,1800.7,11.10643435]
[1746643904056,5.55201593,1801.2,1800.7,0.55]
[1746643904289,5.55186601,1801.2,1800.7,0.55]
[1746643904496,5.55167381,1801.3,1800.8,5.55290809]
[1746643904701,6.493,1801.4,1800.8,5.55290809]
[1746643904903,11.10429672,1801.2,1800.8,5.55290809]
[1746643905102,5.55214836,1801.2,1800.8,5.55290809]
[1746643905305,6.493,1801.4,1800.8,5.55308751]
[1746643905493,12.04440599,1801.4,1801.0,0.7926]
[1746643905894,5.55164481,1801.3,1801.0,6.34505263]
[1746643906089,6.493,1801.4,1801.0,0.7926]
[1746643906275,5.55158768,1801.3,1801.0,0.7926]
[1746643906476,12.04442529,1801.4,1801.1,5.60757387]
[1746643906477,6.493,1801.4,1801.1,5.60757387]
[1746643906678,12.04425031,1801.4,1801.1,0.69553237]
[1746643906912,6.493,1801.4,1801.1,6.24758067]
[1746643907204,5.55095834,1801.5,1801.1,6.19206034]
[1746643907406,5.55130867,1801.4,1801.1,6.19206034]
[1746643907625,5.55111438,1801.5,1801.1,6.19194879]
[1746643907830,5.55067925,1801.6,1801.2,6.17091941]
[1746643908006,5.55087984,1801.6,1801.2,0.61919488]
[1746643908207,5.55031359,1801.7,1801.2,0.61919488]
[1746643908411,5.55121213,1801.5,1801.2,0.61919488]
[1746643908820,0.10439401,1801.4,1801.2,0.61919488]
[1746643909929,5.65566318,1801.4,1801.2,0.61919488]
[1746643910102,5.5515461,1801.3,1801.0,0.7926]
[1746643910299,5.55195479,1801.2,1800.9,3.0]
[1746643910622,0.10437517,1801.1,1800.9,3.0]